bitfinex-derivatives/quotes_SOLF0:USTF0_20260213
["timestamp","ask_amount","ask_price","bid_price","bid_amount"]
[1770956809113,11.398,79.028,78.991,7.83699537]
[1770956809913,3.51801724,79.02,78.991,7.83699537]
[1770956810505,11.398,79.028,78.991,7.83699537]
[1770956816015,3.51801724,79.03,78.991,7.83699537]
[1770956816016,11.3965,79.039,78.991,7.83699537]
[1770956817514,3.51801724,79.03,78.991,7.83699537]
[1770956817712,3.51801724,79.03,78.992,11.4031]
[1770956818007,3.51801724,79.03,78.963,23.40307887]
[1770956818008,11.80847001,79.052,79.011,7.87015525]
[1770956818312,3.51801724,79.06,79.021,7.87015525]
[1770956818507,3.51801724,79.07,79.031,7.86902659]
[1770956818704,11.3922,79.069,79.031,7.86902659]
[1770956819904,11.3925,79.066,79.031,7.86902659]
[1770956820504,3.51801724,79.05,79.011,11.4004]
[1770956820902,3.51801724,79.05,79.008,7.83765474]
[1770956821114,3.51801724,79.04,79.008,7.83765474]
[1770956822104,3.51801724,79.04,79.0,11.4019]
[1770956822304,11.395,79.049,78.995,7.83765474]
[1770956822305,3.51801724,79.03,78.995,7.83765474]
[1770956823206,3.51801724,79.04,79.001,7.87252213]
[1770956823409,3.51801724,79.05,79.011,7.87252213]
[1770956823808,3.51801724,79.05,79.015,7.87252213]
[1770956825013,11.80847001,79.081,79.021,7.85603037]
[1770956825308,3.51801724,79.06,79.031,7.85603037]
[1770956825807,3.51801724,79.04,79.019,11.3993]
[1770956826012,3.51801724,79.03,79.006,7.85603037]
[1770956826714,3.51801724,79.03,79.007,11.401]
[1770956827314,3.51801724,79.03,79.006,7.85603037]
[1770956832615,3.51801724,79.04,79.006,7.85603037]
[1770956832821,3.51801724,79.04,79.002,11.4016]
[1770956832822,3.51801724,79.04,79.009,7.83785412]
[1770956834818,3.51801724,79.05,79.014,7.83802012]
[1770956836715,3.51801724,79.04,79.014,7.83802012]
[1770956837323,3.51801724,79.05,79.014,7.83802012]
[1770956837520,3.51801724,79.05,79.016,7.83441658]
[1770956838720,3.51801724,79.05,79.02,11.3991]
[1770956838922,3.51801724,79.05,79.02,19.21369398]
[1770956840518,3.51801724,79.05,79.003,7.82072431]
[1770956840725,3.51801724,79.05,79.012,11.4002]
[1770956840924,3.51801724,79.05,79.013,7.82072431]
[1770956841125,3.51801724,79.06,79.013,7.82072431]
[1770956842826,3.51801724,79.06,79.018,7.85797881]
[1770956846825,3.51801724,79.05,79.018,7.85797881]
[1770956847024,3.51533314,79.05,79.018,7.85797881]
[1770956849537,3.51533314,79.05,79.01,3.51533314]
[1770956849739,3.51533314,79.05,78.974,23.40307887]
[1770956849740,3.51533314,79.05,79.009,7.88863211]
[1770956850040,3.51533314,79.05,79.011,7.88863211]
[1770956850737,3.51533314,79.05,79.014,7.8908711]
[1770956850936,14.90873314,79.06,79.014,7.8908711]
[1770956851637,14.90873314,79.06,79.017,7.8908711]
[1770956852738,14.90873314,79.06,79.018,11.3993]
[1770956852942,14.90873314,79.06,79.019,7.90937082]
[1770956853844,3.51533314,79.05,79.019,7.90937082]
[1770956859249,11.3934,79.06,79.019,7.90937082]
[1770956859250,14.90873314,79.06,79.019,7.90937082]
[1770956863147,11.3943,79.054,79.019,7.90937082]
[1770956863348,3.51533314,79.05,79.019,7.90937082]
[1770956865253,11.3954,79.047,79.001,7.91179217]
[1770956865453,3.51533314,79.04,79.001,7.91179217]
[1770956865853,3.51533314,79.03,79.001,7.91179217]
[1770956866059,3.51533314,79.03,78.967,134.58]
[1770956866060,3.51533314,79.02,78.99,7.91179217]
[1770956866247,3.51533314,79.02,78.945,31.57245117]
[1770956866248,3.51533314,79.01,78.973,7.91179217]
[1770956867451,14.91453314,79.02,78.973,7.91179217]
[1770956867649,3.51533314,79.02,78.981,7.91389356]
[1770956868560,11.3979,79.029,78.983,7.88888866]
[1770956868870,3.51533314,79.03,78.991,7.88888866]
[1770956869460,11.3965,79.039,78.991,7.88888866]
[1770956873665,11.3965,79.039,79.0,3.51533314]
[1770956873859,11.3965,79.039,79.001,7.87820674]
[1770956875662,3.51533314,79.03,79.001,7.87820674]
[1770956879363,3.51533314,79.03,78.991,7.86054214]
[1770956880360,3.51533314,79.02,78.991,7.86054214]
[1770956882668,11.3982,79.027,78.991,7.86054214]
[1770956887470,3.51533314,79.03,78.991,7.86054214]
[1770956887471,11.3991,79.021,78.991,7.86054214]
[1770956889576,11.398,79.028,78.991,7.86054214]
[1770956892182,3.51533314,79.03,78.978,7.85558482]
[1770956892183,14.91453314,79.02,78.978,7.85558482]
[1770956892681,14.91453314,79.02,78.981,7.87715337]
[1770956892880,11.3992,79.02,78.981,7.87715337]
[1770956893575,11.3992,79.02,78.98,3.51533314]
[1770956893576,3.51533314,79.03,78.983,7.87715337]
[1770956894175,3.51533314,79.03,78.99,3.51533314]
[1770956894373,3.51533314,79.03,78.991,7.87715337]
[1770956895479,11.3982,79.027,78.991,7.87715337]
[1770956897486,11.3971,79.035,78.991,7.87715337]
[1770956898084,3.51533314,79.03,78.991,7.87715337]
[1770956899486,11.3986,79.024,78.991,7.87715337]
[1770956903190,11.3993,79.019,78.976,11.4054]
[1770956903397,3.51533314,79.01,78.971,7.8385634]
[1770956904894,3.51533314,79.01,78.973,11.4059]
[1770956905491,3.51533314,79.01,78.973,19.24944619]
[1770956906682,11.80847001,79.031,78.974,7.80987685]
[1770956906890,3.51533314,79.02,78.976,7.80987685]
[1770956907196,3.51533314,79.01,78.976,7.80987685]
[1770956908994,3.51910985,79.01,78.976,7.80987685]
[1770956909496,11.3982,79.027,78.979,7.78082903]
[1770956909795,3.51910985,79.02,78.979,7.78082903]
[1770956910792,14.91830985,79.02,78.979,7.78082903]
[1770956912597,3.51910985,79.01,78.979,7.78082903]
[1770956914698,14.91830985,79.02,78.979,7.78082903]
[1770956917293,3.51910985,79.01,78.979,7.78082903]
[1770956922298,11.4013,79.006,78.979,7.78082903]
[1770956922602,3.51910985,79.01,78.979,7.78082903]
[1770956923805,11.4012,79.006,78.979,7.78082903]
[1770956928911,11.4012,79.006,78.959,11.4079]
[1770956928912,3.51910985,78.99,78.953,7.79023157]
[1770956929407,3.51910985,79.0,78.953,7.79023157]
[1770956930699,11.4024,78.998,78.953,7.79023157]
[1770956931609,11.4034,78.991,78.953,7.79023157]
[1770956932804,3.51910985,78.99,78.953,7.79023157]
[1770956935511,11.4034,78.991,78.953,7.79023157]
[1770956940425,3.51910985,78.99,78.953,7.79023157]
[1770956943224,11.80847001,79.009,78.961,7.76173102]
[1770956943523,11.80847001,79.009,78.91,200.97017887]
[1770956943524,3.51910985,79.02,78.971,7.76173102]
[1770956944124,3.51910985,79.01,78.971,7.76173102]
[1770956944322,49.80847001,79.03,78.961,7.76173102]
[1770956944323,3.51910985,79.0,78.961,7.76173102]
[1770956945515,3.51910985,78.99,78.961,7.76173102]
[1770956946724,3.51910985,79.0,78.961,7.76173102]
[1770956947123,3.51910985,78.99,78.961,7.76173102]
[1770956948931,11.4018,79.002,78.961,7.76173102]
[1770956948932,3.51910985,79.0,78.961,7.76173102]
[1770956953633,38.0,79.016,78.942,7.73423227]
[1770956953834,3.51910985,78.99,78.951,4.21512242]
[1770956954631,11.4037,78.989,78.951,4.21512242]
[1770956954830,3.51910985,78.98,78.941,4.21500539]
[1770956955432,3.51910985,78.98,78.915,15.63977656]
[1770956955433,3.51910985,78.97,78.913,4.21500539]
[1770956955632,3.51910985,78.97,78.931,4.21500539]
[1770956960037,11.4051,78.979,78.934,4.23231982]
[1770956965636,11.4051,78.979,78.936,4.21433752]
[1770956972643,3.52221513,78.97,78.936,4.21433752]
[1770956972946,3.52221513,78.97,78.897,23.40307887]
[1770956972947,3.52221513,78.98,78.941,4.2295947]
[1770956973151,3.52221513,78.99,78.941,4.2295947]
[1770956973853,14.92721513,78.98,78.941,4.2295947]
[1770956976255,3.52221513,78.97,78.941,4.2295947]
[1770956977354,14.92721513,78.98,78.941,4.2295947]
[1770956980760,11.4058,78.974,78.941,4.2295947]
[1770956985361,3.52221513,78.97,78.941,4.2295947]
[1770956986070,11.4058,78.974,78.941,4.2295947]
[1770956986569,3.52221513,78.98,78.941,4.2295947]
[1770956987770,11.4054,78.977,78.941,4.2295947]
[1770956988766,3.52221513,78.98,78.941,4.2295947]
[1770956992468,3.52221513,78.98,78.943,4.24433784]
[1770956993473,3.52221513,78.98,78.945,4.24842332]
[1770956997276,3.52221513,78.98,78.912,23.40307887]
[1770956997277,3.52221513,78.97,78.935,4.24819379]
[1770956997475,3.52221513,78.97,78.904,23.40307887]
[1770956997476,3.52221513,78.95,78.915,4.24819379]
[1770956997676,11.77422344,78.982,78.901,4.24819379]
[1770956997677,3.52221513,78.94,78.901,4.24819379]
[1770956997872,23.40311552,78.979,78.877,23.40307887]
[1770956997873,3.52221513,78.93,78.883,4.24819379]
[1770956998077,3.52221513,78.92,78.883,4.24819379]
[1770956998670,3.52221513,78.91,78.883,4.24819379]
[1770956999373,3.52221513,78.92,78.883,4.24819379]
[1770957000274,3.52221513,78.93,78.891,4.29665574]
[1770957000769,3.52221513,78.92,78.891,4.29665574]
[1770957000974,3.52221513,78.91,78.88,4.28601038]
[1770957001772,3.52221513,78.9,78.861,4.28601038]
[1770957004473,3.52221513,78.9,78.86,3.52221513]
[1770957004474,3.52221513,78.89,78.833,4.26831819]
[1770957004782,3.52221513,78.88,78.841,4.26831819]
[1770957005182,3.52221513,78.89,78.851,4.26831819]
[1770957005871,3.52221513,78.9,78.861,4.26831819]
[1770957006880,11.4152,78.909,78.871,4.22805265]
[1770957008584,3.52221513,78.9,78.871,4.22805265]
[1770957008782,0.09169611,78.898,78.857,4.16517751]
[1770957009186,0.09169611,78.898,78.861,4.16517751]
[1770957010279,3.52221513,78.89,78.861,4.16517751]
[1770957010590,3.52221513,78.9,78.861,4.16517751]
[1770957012478,3.56310003,78.9,78.861,4.16517751]
[1770957012690,3.52221513,78.89,78.861,4.16517751]
[1770957013786,0.0408849,78.889,78.851,4.19058312]
[1770957013985,3.56310003,78.88,78.84,7.71279825]
[1770957014188,3.56310003,78.88,78.84,4.19058312]
[1770957014486,3.52221513,78.87,78.84,4.19058312]
[1770957014682,3.52221513,78.86,78.829,4.20640973]
[1770957014991,3.52221513,78.86,78.82,7.72862486]
[1770957015188,3.52221513,78.86,78.821,4.20640973]
[1770957016192,11.4208,78.87,78.821,4.20640973]
[1770957016394,3.52221513,78.86,78.821,4.20640973]
[1770957017191,3.52221513,78.84,78.801,4.22413296]
[1770957017387,3.52221513,78.86,78.811,4.22413296]
[1770957017687,11.4224,78.859,78.812,4.22413296]
[1770957018289,11.4224,78.859,78.811,11.4293]
[1770957018290,11.4224,78.859,78.821,4.22413296]
[1770957023790,3.52221513,78.86,78.821,4.22413296]
[1770957024993,3.52221513,78.85,78.821,4.22413296]
[1770957029095,11.4227,78.858,78.821,4.22413296]
[1770957029797,11.4214,78.866,78.821,4.22413296]
[1770957030789,11.4214,78.866,78.822,4.2789549]
[1770957031199,3.53296884,78.86,78.822,4.2789549]
[1770957031704,11.4214,78.866,78.822,4.2789549]
[1770957032004,3.53296884,78.86,78.822,4.2789549]
[1770957032800,3.53296884,78.85,78.811,4.25135356]
[1770957033399,3.53296884,78.87,78.821,4.25135356]
[1770957033598,3.53296884,78.86,78.821,4.25135356]
[1770957034804,11.4227,78.858,78.821,4.25135356]
[1770957037402,3.53296884,78.85,78.806,4.27709613]
[1770957037794,3.53296884,78.85,78.81,3.53296884]
[1770957037998,3.53296884,78.85,78.811,4.27709613]
[1770957039204,11.4225,78.859,78.811,4.27709613]
[1770957040406,11.4225,78.859,78.821,4.27894988]
[1770957041309,38.03,78.892,78.82,3.53296884]
[1770957041310,11.4213,78.867,78.823,4.2693949]
[1770957046905,3.53296884,78.87,78.823,4.2693949]
[1770957047207,11.4197,78.879,78.831,4.31227779]
[1770957048304,11.4197,78.879,78.841,4.31227779]
[1770957050408,11.4205,78.873,78.841,4.31227779]
[1770957051014,3.53296884,78.87,78.841,4.31227779]
[1770957051606,3.53296884,78.87,78.831,4.31035383]
[1770957052211,11.4212,78.868,78.831,4.31035383]
[1770957052514,3.53296884,78.86,78.82,7.84332267]
[1770957055909,3.53296884,78.86,78.82,4.31035383]
[1770957057511,3.53296884,78.85,78.811,4.34086798]
[1770957058616,3.53296884,78.86,78.811,4.34086798]
[1770957059115,11.4227,78.858,78.82,3.53296884]
[1770957059618,15.67127011,78.885,78.789,101.24]
[1770957059619,3.53296884,78.87,78.83,3.53296884]
[1770957060220,11.4216,78.865,78.83,3.53296884]
[1770957060616,11.4216,78.865,78.83,7.86373537]
[1770957060818,11.4206,78.872,78.831,4.33076653]
[1770957061018,11.77422344,78.879,78.831,4.33076653]
[1770957061316,3.53296884,78.87,78.831,4.33076653]
[1770957061720,11.4215,78.866,78.831,4.33076653]
[1770957063218,11.4228,78.857,78.816,4.34338707]
[1770957063824,11.4228,78.857,78.82,3.53296884]
[1770957066417,11.4228,78.857,78.799,101.26]
[1770957066418,11.77422344,78.874,78.84,3.53296884]
[1770957066617,3.53296884,78.87,78.82,3.53296884]
[1770957066823,3.53296884,78.86,78.814,4.34286428]
[1770957067728,11.4228,78.857,78.814,4.34286428]
[1770957069122,11.4228,78.857,78.82,7.8445255]
[1770957069627,11.4237,78.85,78.82,4.31155666]
[1770957070825,11.4237,78.85,78.82,7.8445255]
[1770957071228,11.4237,78.85,78.821,4.3265244]
[1770957076435,11.4228,78.857,78.821,4.3265244]
[1770957077732,3.53296884,78.83,78.776,15.63977656]
[1770957077933,3.53296884,78.83,78.78,3.53296884]
[1770957078529,3.53296884,78.83,78.781,4.39487853]
[1770957078732,11.4277,78.823,78.781,4.39487853]
[1770957079331,109.22,78.847,78.766,11.4358]
[1770957079332,3.53296884,78.81,78.766,11.4358]
[1770957079530,11.4287,78.816,78.771,4.39487853]
[1770957079834,11.4287,78.816,78.781,4.39487853]
[1770957080031,3.53296884,78.82,78.781,4.39487853]
[1770957081836,11.4289,78.815,78.781,4.39487853]
[1770957082942,3.53296884,78.82,78.781,4.39487853]
[1770957083743,11.4284,78.818,78.781,4.39487853]
[1770957084444,3.53296884,78.82,78.771,4.38483319]
[1770957084834,3.53296884,78.82,78.781,4.3773827]
[1770957085342,11.4283,78.819,78.781,4.3773827]
[1770957085637,3.53296884,78.81,78.77,7.91035154]
[1770957085841,3.53296884,78.81,78.736,15.63977656]
[1770957085842,11.77422344,78.827,78.754,4.3773827]
[1770957086040,3.53296884,78.79,78.754,4.3773827]
[1770957086443,11.4327,78.789,78.754,4.3773827]
[1770957088644,11.4313,78.798,78.76,8.02018956]
[1770957090841,11.4313,78.798,78.76,8.02509963]
[1770957091749,11.4313,78.798,78.76,4.48722072]
[1770957093251,3.53787891,78.8,78.76,8.02509963]
[1770957093652,3.53787891,78.8,78.76,4.48722072]
[1770957094341,3.53787891,78.79,78.751,4.49873076]
[1770957095240,11.4312,78.799,78.752,4.47528387]
[1770957095944,3.53787891,78.8,78.76,3.53787891]
[1770957096247,3.53787891,78.8,78.754,4.47528387]
[1770957096446,11.4311,78.799,78.754,4.47528387]
[1770957097246,11.4311,78.799,78.756,11.4373]
[1770957097449,11.4311,78.799,78.76,3.53787891]
[1770957097648,11.4311,78.799,78.757,4.45752913]
[1770957109955,3.53787891,78.82,78.781,4.38016222]
[1770957110351,14.96597891,78.82,78.781,4.38016222]
[1770957110553,3.53787891,78.81,78.771,4.34881365]
[1770957111550,11.4301,78.807,78.771,4.34881365]
[1770957113753,3.53787891,78.8,78.761,4.37621533]
[1770957113957,3.53787891,78.79,78.751,4.37621533]
[1770957114554,11.4313,78.798,78.76,19.383252]
[1770957115453,11.4313,78.798,78.761,4.40857309]
[1770957116062,11.4298,78.809,78.771,4.40857309]
[1770957118450,3.53787891,78.8,78.745,11.4389]
[1770957118654,109.16,78.833,78.745,11.4389]
[1770957118655,3.53787891,78.79,78.745,11.4389]
[1770957119262,3.53787891,78.79,78.749,15.84424248]
[1770957120666,3.53787891,78.79,78.75,4.39558534]
[1770957120856,11.4326,78.789,78.75,4.39558534]
[1770957125160,3.53787891,78.79,78.752,4.38595157]
[1770957125360,3.53787891,78.8,78.761,4.38595157]
[1770957126367,11.4311,78.799,78.761,4.38595157]
[1770957134471,3.53787891,78.79,78.751,4.39904668]
[1770957135677,11.4327,78.788,78.751,4.39904668]
[1770957135868,11.4327,78.788,78.741,4.3669955]
[1770957136977,11.4327,78.788,78.742,4.36589754]
[1770957138777,11.4327,78.788,78.746,4.36276826]
[1770957138972,3.53787891,78.79,78.746,4.36276826]
[1770957139180,3.53787891,78.79,78.751,4.36276826]
[1770957139978,11.4326,78.789,78.751,4.36276826]
[1770957142777,3.53787891,78.8,78.751,4.36276826]
[1770957143985,11.4311,78.799,78.755,4.374397]
[1770957145884,11.4311,78.799,78.757,11.4372]
[1770957147080,11.4311,78.799,78.759,11.4368]
[1770957147284,11.4311,78.799,78.76,4.37023597]
[1770957147485,3.53787891,78.79,78.76,4.37023597]
[1770957149185,11.4311,78.799,78.76,4.37023597]
[1770957149487,11.4311,78.799,78.754,11.4376]
[1770957149685,3.53787891,78.79,78.754,11.4376]
[1770957150187,14.97047891,78.79,78.754,4.36294825]
[1770957150383,14.97047891,78.79,78.746,11.4387]
[1770957150577,110.24,78.818,78.744,4.36294825]
[1770957150578,3.53787891,78.78,78.744,4.36294825]
[1770957150790,3.53787891,78.78,78.733,4.36006238]
[1770957151785,14.97177891,78.78,78.736,11.4402]
[1770957151983,3.53787891,78.78,78.733,4.36006238]
[1770957152187,3.53787891,78.77,78.733,4.36006238]
[1770957152676,3.53787891,78.78,78.733,4.36006238]
[1770957152878,3.53976262,78.78,78.733,4.36006238]
[1770957153584,11.4346,78.775,78.738,4.39367598]
[1770957153986,3.53976262,78.77,78.738,4.39367598]
[1770957156393,11.4346,78.775,78.738,4.39367598]
[1770957159087,3.53976262,78.77,78.738,4.39367598]
[1770957159693,11.4355,78.769,78.738,4.39367598]
[1770957161386,11.4355,78.769,78.73,3.53976262]
[1770957161588,3.53976262,78.76,78.726,4.37890404]
[1770957161896,3.53976262,78.75,78.708,4.37890404]
[1770957162202,3.53976262,78.74,78.708,4.37890404]
[1770957162794,3.53976262,78.74,78.7,3.53976262]
[1770957163188,3.53976262,78.74,78.7,7.96153763]
[1770957163798,3.53976262,78.74,78.702,4.42177501]
[1770957164797,3.53976262,78.74,78.704,4.42554219]
[1770957164998,11.4393,78.743,78.704,4.42554219]
[1770957165302,3.53976262,78.75,78.704,4.42554219]
[1770957165490,3.53976262,78.75,78.71,3.53976262]
[1770957167802,3.53976262,78.75,78.71,7.97629543]
[1770957168202,11.4381,78.751,78.72,3.53976262]
[1770957168391,11.4381,78.751,78.721,4.43653281]
[1770957170405,11.4389,78.746,78.711,4.43169592]
[1770957171103,3.53976262,78.74,78.711,4.43169592]
[1770957171607,11.44,78.738,78.711,4.43169592]
[1770957171903,11.44,78.738,78.695,11.4462]
[1770957171904,38.03,78.7,78.602,122.52]
[1770957172209,3.53976262,78.64,78.602,101.38]
[1770957173001,3.53976262,78.64,78.59,3.53976262]
[1770957173002,3.53976262,78.66,78.61,3.53976262]
[1770957173201,3.53976262,78.66,78.611,112.18]
[1770957173703,3.53976262,78.66,78.612,21.76085166]
[1770957173902,3.53976262,78.65,78.614,21.76085166]
[1770957174100,11.4515,78.659,78.614,21.76085166]
[1770957174501,11.4515,78.659,78.616,21.76085166]
[1770957174701,11.4515,78.659,78.62,3.53976262]
[1770957175006,11.4515,78.659,78.621,101.4]
[1770957177994,11.4515,78.659,78.621,123.20476736]
[1770957178203,38.03,78.69,78.621,123.20476736]
[1770957178204,11.4501,78.669,78.631,21.80476736]
[1770957179806,11.4485,78.68,78.65,3.53976262]
[1770957180005,11.4485,78.68,78.651,126.1520844]
[1770957180203,14.98826262,78.68,78.636,21.8120844]
[1770957180407,11.4515,78.659,78.62,25.35184702]
[1770957180604,3.53976262,78.67,78.622,21.8120844]
[1770957180910,3.53976262,78.67,78.63,3.53976262]
[1770957181611,3.53976262,78.67,78.631,129.92]
[1770957181812,3.53976262,78.68,78.64,3.53976262]
[1770957182105,3.53976262,78.68,78.641,101.46]
[1770957182810,11.4487,78.679,78.641,101.46]
[1770957183211,11.4454,78.701,78.65,22.63410538]
[1770957183511,3.53976262,78.7,78.65,26.173868]
[1770957183703,3.53976262,78.69,78.65,26.173868]
[1770957184612,3.53976262,78.69,78.651,126.36]
[1770957185113,11.4462,78.696,78.652,153.05750394]
[1770957186210,3.53976262,78.69,78.652,22.61750394]
[1770957186410,11.4473,78.688,78.654,22.61750394]
[1770957186707,3.53976262,78.67,78.639,22.57246126]
[1770957186915,0.23597836,78.67,78.64,130.78]
[1770957187113,3.53976262,78.68,78.64,134.31976262]
[1770957187910,11.4493,78.675,78.641,22.57246126]
[1770957188513,11.4493,78.675,78.65,3.53976262]
[1770957188912,11.4478,78.685,78.65,25.86432879]
[1770957190018,11.4478,78.685,78.652,22.32456617]
[1770957190208,11.4478,78.685,78.653,101.48]
[1770957190609,11.4478,78.685,78.654,131.46]
[1770957191008,11.4495,78.673,78.655,107.9018]
[1770957191210,11.4495,78.673,78.64,22.32074891]
[1770957191418,11.4495,78.673,78.656,51.01160001]
[1770957191619,11.4495,78.673,78.656,1e-08]
[1770957194710,11.4482,78.682,78.656,1e-08]
[1770957195415,11.4482,78.682,78.657,101.48]
[1770957196009,3.53976262,78.69,78.64,3.53976262]
[1770957196010,11.4493,78.675,78.658,81.341]
[1770957196214,11.4493,78.675,78.638,22.34613701]
[1770957196414,11.4493,78.675,78.654,62.4246]
[1770957196818,11.4503,78.668,78.638,22.34613701]
[1770957197013,11.4503,78.668,78.648,80.9197]
[1770957198819,11.4503,78.668,78.637,112.76]
[1770957199326,11.4503,78.668,78.638,22.35094352]
[1770957200318,11.449,78.676,78.641,22.35094352]
[1770957200527,11.449,78.676,78.642,132.16]
[1770957200727,11.449,78.676,78.643,22.35094352]
[1770957200917,11.4479,78.684,78.643,22.35094352]
[1770957201518,11.4479,78.684,78.644,132.4]
[1770957201819,11.4479,78.684,78.645,22.26585638]
[1770957202020,11.4479,78.684,78.645,154.72585638]
[1770957202221,3.53976262,78.68,78.646,22.26585638]
[1770957202421,11.4479,78.684,78.646,22.26585638]
[1770957202827,11.4479,78.684,78.648,22.23494093]
[1770957204124,11.4479,78.684,78.649,132.84]
[1770957204324,11.4479,78.684,78.649,155.07494093]
[1770957204528,11.4479,78.684,78.65,22.23494093]
[1770957205224,11.4479,78.684,78.651,133.04]
[1770957206323,11.4479,78.684,78.651,155.28814234]
[1770957206623,11.4479,78.684,78.652,133.32]
[1770957207025,11.4489,78.677,78.652,133.32]
[1770957207626,11.4489,78.677,78.651,22.24814234]
[1770957207827,11.4489,78.677,78.652,101.48]
[1770957208424,3.53976262,78.67,78.63,3.53976262]
[1770957208630,3.53976262,78.66,78.629,101.48]
[1770957209931,11.4521,78.655,78.629,101.48]
[1770957210231,3.53976262,78.66,78.629,101.48]
[1770957211930,11.451,78.663,78.629,101.48]
[1770957212929,3.55037547,78.66,78.629,101.48]
[1770957214325,11.451,78.663,78.629,101.48]
[1770957214530,3.55037547,78.66,78.629,101.48]
[1770957215130,11.451,78.663,78.629,101.48]
[1770957215326,9.53406266,78.662,78.629,114.09707607]
[1770957215533,9.53406266,78.661,78.629,114.09707607]
[1770957215733,9.53406266,78.66,78.629,114.09707607]
[1770957215926,11.4517,78.658,78.629,12.61707607]
[1770957216119,20.98576266,78.658,78.629,12.61707607]
[1770957216320,20.98576266,78.658,78.624,127.82]
[1770957216321,9.53406266,78.657,78.631,12.61707607]
[1770957216531,3.55037547,78.67,78.631,12.61707607]
[1770957217735,11.4506,78.665,78.631,12.61707607]
[1770957218029,275.36302591,78.709,78.567,38.03]
[1770957218030,3.55037547,78.66,78.618,12.63517708]
[1770957218432,3.55037547,78.66,78.62,3.55037547]
[1770957218835,11.4525,78.652,78.62,3.55037547]
[1770957220332,11.4536,78.645,78.618,12.63517708]
[1770957220938,11.4525,78.652,78.62,3.55037547]
[1770957221139,11.4525,78.652,78.621,12.60139599]
[1770957223936,11.4527,78.651,78.621,12.60139599]
[1770957224437,11.4514,78.66,78.631,12.60986712]
[1770957226041,11.4523,78.653,78.631,12.60986712]
[1770957226834,11.4514,78.66,78.631,12.60986712]
[1770957234249,9.52964996,78.659,78.631,12.60986712]
[1770957234447,11.4528,78.65,78.621,12.56358372]
[1770957234642,9.52904595,78.649,78.621,12.56358372]
[1770957234949,11.4528,78.65,78.621,12.56358372]
[1770957236143,3.55037547,78.67,78.631,12.56338892]
[1770957236446,9.5303776,78.669,78.631,12.56338892]
[1770957236643,9.5303776,78.668,78.631,12.56338892]
[1770957236843,9.5303776,78.667,78.631,12.56338892]
[1770957237044,9.5303776,78.666,78.631,12.56338892]
[1770957237235,9.5303776,78.665,78.631,12.56338892]
[1770957237546,11.4513,78.661,78.631,12.56338892]
[1770957237746,9.5303776,78.66,78.631,12.56338892]
[1770957237949,9.5303776,78.659,78.631,12.56338892]
[1770957238149,20.9819776,78.658,78.631,12.56338892]
[1770957238447,9.5303776,78.657,78.631,12.56338892]
[1770957238650,9.5303776,78.656,78.631,12.56338892]
[1770957238951,9.53576282,78.655,78.631,12.56338892]
[1770957239148,11.4516,78.658,78.631,12.56338892]
[1770957239349,9.53574535,78.657,78.631,12.56338892]
[1770957239550,9.53574535,78.656,78.631,12.56338892]
[1770957239747,9.53574535,78.655,78.631,12.56338892]
[1770957239949,11.4516,78.658,78.631,12.56338892]
[1770957240154,11.452,78.656,78.631,12.56338892]
[1770957240354,9.53628176,78.655,78.631,12.56338892]
[1770957240554,9.53628176,78.654,78.631,12.56338892]
[1770957240861,9.53692171,78.653,78.631,12.56338892]
[1770957241047,9.53692171,78.652,78.631,12.56338892]
[1770957241349,11.72387732,78.678,78.631,12.56338892]
[1770957241560,9.53917644,78.677,78.641,12.61383432]
[1770957241850,9.53917644,78.676,78.641,12.61383432]
[1770957242051,11.4495,78.673,78.641,12.61383432]
[1770957242652,11.4481,78.682,78.651,12.57926946]
[1770957243654,11.4464,78.695,78.66,3.55037547]
[1770957243857,11.4464,78.695,78.661,12.57926946]
[1770957245254,3.55037547,78.69,78.661,12.57926946]
[1770957245754,11.4468,78.692,78.661,12.57926946]
[1770957249457,11.4468,78.692,78.662,12.72647608]
[1770957250853,11.4468,78.692,78.658,139.4]
[1770957251050,11.4468,78.692,78.66,3.55037547]
[1770957251448,11.4468,78.692,78.661,12.73470411]
[1770957251762,3.55037547,78.72,78.671,12.73470411]
[1770957251956,3.55037547,78.72,78.673,12.73470411]
[1770957252461,108.62,78.752,78.673,12.73470411]
[1770957252659,3.55037547,78.71,78.673,12.73470411]
[1770957252851,3.55037547,78.71,78.674,101.48]
[1770957253056,3.55037547,78.71,78.675,129.33777023]
[1770957255957,11.4431,78.717,78.676,12.80302803]
[1770957259167,3.55037547,78.71,78.676,12.80302803]
[1770957260368,11.4431,78.717,78.676,12.80302803]
[1770957263067,3.55037547,78.71,78.676,12.80302803]
[1770957263961,3.55037547,78.7,78.618,195.49961793]
[1770957264160,3.55037547,78.67,78.63,3.55037547]
[1770957264360,3.55037547,78.67,78.62,3.55037547]